[Event "Czech Youth U16 Girls 2024"]
[Site "Kouty nad Desnou"]
[Date "2024.03.14"]
[Round "7.1"]
[White "Dobsa, Emma"]
[Black "Kavanova, Anezka"]
[Result "1-0"]
[ECO "B38"]
[WhiteElo "1750"]
[BlackElo "1661"]
[Annotator "NA RC"]
[PlyCount "57"]
[EventDate "2024.03.10"]
[EventType "swiss"]
[EventCountry "CZE"]
[SourceTitle "playchess.com"]
[Source "ChessBase"]
[SourceQuality "1"]
[TimeControl "40/5400+30:1800+30"]

1. e4 {[%emt 0:00:02]} c5 {[%emt 0:00:06]} 2. Nf3 {[%emt 0:00:05]} Nc6 {[%emt 0:00:05]} 3. d4 {[%emt 0:00:05]} cxd4 {[%emt 0:00:04]} 4. Nxd4 {[%emt 0:00:05]} g6 {[%emt 0:00:03]} 5. c4 Bg7 {[%emt 0:00:04]} 6. Be3 {[%emt 0:00:09]} Qb6 {[%emt 0:00:00]} 7. Nb5 {[%emt 0:06:31]} Qa5+ {[%emt 0:00:42]} 8. N1c3 {[%emt 0:08:25]} Qd8 {[%emt 0:02:16]} 9. Nd4 {[%emt 0:01:54]} d6 10. f3 {[%emt 0:00:55]} Bd7 {[%emt 0:14:56]} 11. Qd2 {[%emt 0:01:32]} Nf6 {[%emt 0:01:12]} 12. Be2 {[%emt 0:07:54]} O-O 13. O-O-O Qa5 {[%emt 0:10:08]} 14. g4 {[%emt 0:04:19]} Rac8 {[%emt 0:08:31]} 15. Kb1 Ne5 16. b3 {[%emt 0:03:51]} a6 {[%emt 0:28:39]} 17. g5 {[%emt 0:05:44]} Nh5 {[%emt 0:00:50]} 18. Nd5 {[%emt 0:00:45]} Qd8 {[%emt 0:00:29]} 19. Rhg1 {[%emt 0:03:04]} Nc6 {[%emt 0:07:57]} 20. f4 {[%emt 0:12:40]} b5 {[%emt 0:03:11]} 21. cxb5 {[%emt 0:02:33]} axb5 {[%emt 0:03:20]} 22. Bxh5 {[%emt 0:02:32]} gxh5 {[%emt 0:05:53]} 23. f5 {[%emt 0:04:28]} e5 {[%emt 0:03:06]} 24. Nxc6 {[%emt 0:01:41]} Bxc6 {[%emt 0:00:07]} 25. f6 {[%emt 0:01:10]} Bxd5 {[%emt 0:00:12]} 26. Qxd5 {[%emt 0:01:35]} Bh8 {[%emt 0:02:20]} 27. g6 {[%emt 0:03:59]} Bxf6 {[%emt 0:01:38]} 28. gxf7+ {[%emt 0:00:19]} Kh8 {[%emt 0:00:14]} 29. Bh6 {[%emt 0:00:50]} 1-0

[Event "Czech Youth U16 Girls 2024"]
[Site "Kouty nad Desnou"]
[Date "2024.03.14"]
[Round "7.2"]
[White "Zadrapova, Amalie"]
[Black "Dominikova, Denisa"]
[Result "1-0"]
[ECO "C96"]
[WhiteElo "1857"]
[BlackElo "1716"]
[Annotator "NA RC"]
[PlyCount "99"]
[EventDate "2024.03.10"]
[EventType "swiss"]
[EventCountry "CZE"]
[SourceTitle "playchess.com"]
[Source "ChessBase"]
[SourceQuality "1"]
[TimeControl "40/5400+30:1800+30"]

1. e4 {[%emt 0:00:03]} e5 {[%emt 0:00:12]} 2. Nf3 {[%emt 0:00:04]} Nc6 {[%emt 0:00:09]} 3. Bb5 {[%emt 0:00:06]} a6 {[%emt 0:00:10]} 4. Ba4 {[%emt 0:00:06]} Nf6 {[%emt 0:00:16]} 5. O-O {[%emt 0:00:10]} Be7 {[%emt 0:00:23]} 6. Re1 {[%emt 0:00:14]} b5 {[%emt 0:00:09]} 7. Bb3 {[%emt 0:00:08]} d6 {[%emt 0:00:28]} 8. c3 {[%emt 0:00:11]} O-O {[%emt 0:00:16]} 9. h3 {[%emt 0:00:06]} Na5 {[%emt 0:00:32]} 10. Bc2 {[%emt 0:00:06]} c5 {[%emt 0:00:48]} 11. d4 {[%emt 0:00:16]} Nc6 {[%emt 0:01:37]} 12. dxc5 {[%emt 0:02:31]} dxc5 {[%emt 0:00:51]} 13. Nbd2 {[%emt 0:00:42] C96: Closed Ruy Lopez: Chigorin Defence: 11 d4, replies other than 11...Qc7.} Re8 {[%emt 0:05:54]} 14. Qe2 {[%emt 0:02:27]} Bf8 {[%emt 0:08:26]} 15. Nf1 {[%emt 0:02:25]} Nb8 {[%emt 0:04:50]} 16. Bg5 {[%emt 0:03:39]} Nbd7 {[%emt 0:03:26]} 17. Rad1 {[%emt 0:03:26]} Qc7 {[%emt 0:04:47]} 18. Ne3 {[%emt 0:03:55]} g6 {[%emt 0:08:14]} 19. Nd5 {[%emt 0:11:56]} Nxd5 {[%emt 0:03:54]} 20. exd5 {[%emt 0:01:20]} Bb7 {[%emt 0:11:39]} 21. h4 {[%emt 0:07:16]} f6 {[%emt 0:08:10]} 22. Bc1 {[%emt 0:01:40]} e4 {[%emt 0:02:43]} 23. Nh2 {[%emt 0:04:01]} f5 {[%emt 0:05:09]} 24. b3 {[%emt 0:09:11]} Bd6 {[%emt 0:06:42]} 25. Nf1 {[%emt 0:02:52]} Qd8 {[%emt 0:04:11]} 26. Bg5 {[%emt 0:01:53]} Qa5 {[%emt 0:01:16]} 27. c4 {[%emt 0:06:42]} bxc4 {[%emt 0:04:59]} 28. bxc4 {[%emt 0:00:50]} Qxa2 $2 {[%emt 0:00:38]} (28... Rab8 $11 {and Black has nothing to worry.}) 29. Ra1 {[%emt 0:00:49]} Qb2 {[%emt 0:01:19]} 30. Rab1 {[%emt 0:00:20]} Qc3 {[%emt 0:06:12]} 31. Rxb7 {[%emt 0:01:04]} Ne5 {[%emt 0:01:41]} 32. Rc1 {[%emt 0:09:10]} Qa3 {[%emt 0:03:08]} 33. Rb3 {[%emt 0:03:59]} Qa2 {[%emt 0:01:19]} 34. Bd1 {[%emt 0:02:45]} Qa5 {[%emt 0:00:57]} 35. Rcb1 {[%emt 0:04:56]} Nd3 {[%emt 0:01:29]} 36. Bd2 {[%emt 0:01:36]} Qd8 {[%emt 0:00:37]} 37. Bc2 {[%emt 0:02:46]} Qxh4 {[%emt 0:00:47]} 38. Bxd3 {[%emt 0:00:27]} exd3 {[%emt 0:00:10]} 39. Qxd3 {[%emt 0:00:17]} Qe7 {[%emt 0:00:56]} 40. Rb7 {[%emt 0:03:17]} Qh4 {[%emt 0:00:27]} 41. Bc3 {[%emt 0:34:06]} Re7 {[%emt 0:05:38]} 42. Rxe7 {[%emt 0:00:00]} Qxe7 {[%emt 0:00:44]} 43. Re1 {[%emt 0:00:00]} Qd7 {[%emt 0:01:16]} 44. Bb2 {[%emt 0:00:00]} Bf8 {[%emt 0:01:53]} 45. Nd2 {[%emt 0:00:00]} Ra7 {[%emt 0:03:32]} 46. Nf3 {[%emt 0:00:00]} Qd8 $18 {[%emt 0:01:36]} 47. Re6 {[%emt 0:00:00]} a5 {[%emt 0:02:04]} 48. d6 {[%emt 0:00:00]} a4 {[%emt 0:03:04]} 49. Qd5 {[%emt 0:00:00]} Rf7 {[%emt 0:01:26]} 50. Ne5 {[%emt 0:00:00]} 1-0

[Event "Czech Youth U16 Girls 2024"]
[Site "Kouty nad Desnou"]
[Date "2024.03.14"]
[Round "7.3"]
[White "Sikorova, Jana"]
[Black "Cinkova, Vicky"]
[Result "1/2-1/2"]
[ECO "A57"]
[WhiteElo "1788"]
[BlackElo "1682"]
[Annotator "NA RC"]
[PlyCount "121"]
[EventDate "2024.03.10"]
[EventType "swiss"]
[EventCountry "CZE"]
[SourceTitle "playchess.com"]
[Source "ChessBase"]
[SourceQuality "1"]
[TimeControl "40/5400+30:1800+30"]

1. d4 {[%emt 0:00:04]} Nf6 {[%emt 0:00:26]} 2. c4 {[%emt 0:00:15]} c5 {[%emt 0:00:21]} 3. d5 {[%emt 0:01:08]} b5 {[%emt 0:03:06]} 4. e3 {[%emt 0:02:35]} Bb7 {[%emt 0:00:59]} 5. Nf3 {[%emt 0:01:19]} g6 {[%emt 0:01:01]} 6. Be2 {[%emt 0:02:42]} bxc4 {[%emt 0:01:06]} 7. Bxc4 {[%emt 0:00:36]} Bg7 {[%emt 0:01:31]} 8. Nc3 {[%emt 0:01:11]} O-O {[%emt 0:00:49]} 9. O-O {[%emt 0:00:44]} Ba6 {[%emt 0:08:29]} 10. Qe2 {[%emt 0:03:56]} Bxc4 {[%emt 0:02:46]} 11. Qxc4 {[%emt 0:00:09]} d6 {[%emt 0:00:25]} 12. Rb1 {[%emt 0:04:44]} Nbd7 {[%emt 0:02:19]} 13. b3 {[%emt 0:01:14]} Qc7 {[%emt 0:04:15]} 14. Ne4 {[%emt 0:05:42]} Nxe4 {[%emt 0:10:34]} 15. Qxe4 {[%emt 0:00:30]} Nf6 {[%emt 0:00:07]} 16. Qd3 {[%emt 0:03:02]} Rab8 {[%emt 0:04:58]} 17. Bb2 {[%emt 0:02:25]} Qa5 {[%emt 0:02:53]} 18. Ra1 {[%emt 0:03:12]} Rfc8 {[%emt 0:03:34]} 19. Nd2 {[%emt 0:04:16]} Qb4 {[%emt 0:10:52]} 20. Nc4 {[%emt 0:04:55]} Nd7 {[%emt 0:05:05]} 21. Bxg7 {[%emt 0:02:39]} Kxg7 {[%emt 0:00:06]} 22. Qe4 {[%emt 0:04:45]} Re8 {[%emt 0:04:33]} 23. Rfc1 {[%emt 0:01:54]} Nb6 {[%emt 0:03:49]} 24. g3 {[%emt 0:02:43]} Nxc4 {[%emt 0:05:44]} 25. Rxc4 {[%emt 0:02:00]} Qa5 {[%emt 0:00:33]} 26. Ra4 {[%emt 0:01:47]} Qc3 {[%emt 0:00:27]} 27. Rd1 {[%emt 0:01:10]} Rb4 {[%emt 0:06:01]} 28. Rxb4 {[%emt 0:03:31]} cxb4 {[%emt 0:01:21]} 29. Qd4+ {[%emt 0:01:47]} Qxd4 {[%emt 0:00:13]} 30. Rxd4 {[%emt 0:00:07]} Rb8 {[%emt 0:00:05]} 31. Kf1 {[%emt 0:00:50]} f5 {[%emt 0:02:01]} 32. Ke2 {[%emt 0:06:23]} a5 {[%emt 0:00:18]} 33. f3 {[%emt 0:03:38]} Rc8 {[%emt 0:02:26]} 34. Kd2 {[%emt 0:05:29]} Kf6 {[%emt 0:01:43]} 35. f4 {[%emt 0:02:33]} Rc5 {[%emt 0:03:46]} 36. Rd3 {[%emt 0:01:36]} Kf7 {[%emt 0:04:36]} 37. Rd4 {[%emt 0:02:33]} Ke8 {[%emt 0:01:13]} 38. Kd3 {[%emt 0:03:48]} Rc3+ {[%emt 0:00:59]} 39. Kd2 {[%emt 0:00:38]} Kd7 {[%emt 0:00:22]} 40. e4 {[%emt 0:02:16]} Kc7 {[%emt 0:01:41]} 41. e5 {[%emt 0:33:19]} Kb6 {[%emt 0:31:26]} 42. exd6 {[%emt 0:06:39]} exd6 {[%emt 0:00:31]} 43. Kd1 {[%emt 0:01:01]} Kb5 {[%emt 0:01:06]} 44. Rd2 {[%emt 0:01:27]} a4 {[%emt 0:00:00]} 45. bxa4+ {[%emt 0:00:00]} Kxa4 {[%emt 0:00:00]} 46. Ke2 {[%emt 0:00:00]} Kb5 {[%emt 0:00:00]} 47. Rb2 {[%emt 0:00:00]} Kc5 {[%emt 0:00:00]} 48. Rd2 {[%emt 0:00:00]} Rc4 {[%emt 0:00:00]} 49. Ke3 {[%emt 0:00:00]} Re4+ {[%emt 0:00:00]} 50. Kf3 {[%emt 0:00:00]} Rd4 {[%emt 0:00:00]} 51. Rc2+ {[%emt 0:00:00]} Kxd5 {[%emt 0:00:00]} 52. Ke3 {[%emt 0:00:00]} Rc4 {[%emt 0:00:00]} 53. Rb2 {[%emt 0:00:00]} Rc3+ {[%emt 0:00:00]} 54. Kd2 {[%emt 0:00:00]} Kc4 {[%emt 0:00:00]} 55. Rb1 {[%emt 0:00:00]} Ra3 {[%emt 0:00:00]} 56. Rc1+ {[%emt 0:00:00]} Kd4 {[%emt 0:00:00]} 57. Rc2 {[%emt 0:00:00]} Rd3+ {[%emt 0:02:00]} 58. Ke2 {[%emt 0:00:00]} d5 {[%emt 0:00:52]} 59. Rb2 {[%emt 0:00:00]} Re3+ {[%emt 0:04:27]} 60. Kd2 {[%emt 0:00:00]} Rd3+ {[%emt 0:01:08]} 61. Ke2 1/2-1/2

[Event "Czech Youth U16 Girls 2024"]
[Site "Kouty nad Desnou"]
[Date "2024.03.14"]
[Round "7.4"]
[White "Brezikova, Beata"]
[Black "Kaplanova, Dominika"]
[Result "1/2-1/2"]
[ECO "B10"]
[WhiteElo "1804"]
[BlackElo "1837"]
[Annotator "NA RC"]
[PlyCount "95"]
[EventDate "2024.03.10"]
[EventType "swiss"]
[EventCountry "CZE"]
[SourceTitle "playchess.com"]
[Source "ChessBase"]
[SourceQuality "1"]
[TimeControl "40/5400+30:1800+30"]

1. e4 {[%emt 0:00:03]} c6 {[%emt 0:00:23]} 2. c4 {[%emt 0:00:10]} d5 {[%emt 0:00:18]} 3. exd5 {[%emt 0:00:08]} cxd5 {[%emt 0:00:15]} 4. cxd5 {[%emt 0:00:17]} Nf6 {[%emt 0:00:12]} 5. Nc3 {[%emt 0:00:15]} Nxd5 {[%emt 0:00:50]} 6. Nf3 {[%emt 0:00:14]} e6 {[%emt 0:01:24]} 7. d4 {[%emt 0:02:20]} Be7 {[%emt 0:01:59]} 8. Bd3 {[%emt 0:02:08]} Nc6 {[%emt 0:02:05]} 9. a3 {[%emt 0:02:29] D42: Queen's Gambit Declined: Semi-Tarrasch: 5 cxd5 Nxd5 6 e3 Nc6 7 Bd3 .} Bf6 {[%emt 0:04:18]} 10. Bc2 {[%emt 0:02:29]} Nde7 {[%emt 0:04:12]} 11. Ne2 {[%emt 0:18:33]} b6 {[%emt 0:06:13]} 12. O-O {[%emt 0:09:48]} Ba6 {[%emt 0:05:14]} 13. Bd3 {[%emt 0:04:24]} Bxd3 {[%emt 0:02:50]} 14. Qxd3 {[%emt 0:00:12]} O-O {[%emt 0:03:41]} 15. Rd1 {[%emt 0:06:37]} Nd5 {[%emt 0:03:01]} 16. Bd2 {[%emt 0:03:48]} Nce7 {[%emt 0:03:22]} 17. Ng3 {[%emt 0:05:24]} g6 {[%emt 0:03:41]} 18. Ne4 {[%emt 0:04:03]} Bg7 {[%emt 0:00:59]} 19. Ne5 {[%emt 0:05:58]} Nf5 {[%emt 0:10:03]} 20. Nf3 {[%emt 0:05:16]} Nd6 {[%emt 0:09:47]} 21. Ng3 {[%emt 0:06:19]} Rc8 {[%emt 0:03:08]} 22. Ne5 {[%emt 0:02:25]} Nf5 {[%emt 0:02:57]} 23. Ne2 {[%emt 0:04:55]} Qd6 {[%emt 0:07:27]} 24. Nc4 {[%emt 0:02:34]} Qe7 {[%emt 0:02:58]} 25. Ne5 {[%emt 0:05:07]} Rfd8 {[%emt 0:02:47]} 26. Rac1 {[%emt 0:01:33]} Rxc1 {[%emt 0:05:28]} 27. Bxc1 {[%emt 0:00:50]} Qd6 {[%emt 0:05:26]} 28. Nc4 {[%emt 0:01:17]} Qc7 {[%emt 0:01:11]} 29. b3 {[%emt 0:02:40]} Rc8 {[%emt 0:02:13]} (29... Nxd4 $17 30. Nxd4 Ne7) 30. a4 {[%emt 0:02:08]} Nd6 {[%emt 0:02:28]} 31. Ne5 {[%emt 0:00:44]} Qc2 {[%emt 0:01:09]} 32. h3 {[%emt 0:00:31]} Qxd3 {[%emt 0:00:48]} 33. Rxd3 {[%emt 0:00:11]} Rc2 {[%emt 0:00:15]} 34. Rd2 {[%emt 0:00:13]} Rxd2 {[%emt 0:02:09]} 35. Bxd2 {[%emt 0:00:05]} Ne4 {[%emt 0:00:24]} 36. Be1 {[%emt 0:00:13]} Bxe5 {[%emt 0:00:49]} 37. dxe5 {[%emt 0:00:16]} Nc5 {[%emt 0:00:14]} 38. Nc1 {[%emt 0:00:47]} Nf4 {[%emt 0:01:10]} (38... Kf8 $15) 39. h4 {[%emt 0:01:01]} (39. Bd2 $11 {keeps the balance.} Nd5 40. g3) 39... Nfd3 {[%emt 0:00:44]} 40. Nxd3 {[%emt 0:01:20]} Nxd3 {[%emt 0:00:02]} 41. Bc3 {[%emt 0:30:38]} Nc1 {[%emt 0:31:44]} 42. Kf1 {[%emt 0:00:00]} Nxb3 {[%emt 0:00:00]} 43. Ke2 {[%emt 0:00:00]} a5 {[%emt 0:00:00]} ({Black should try} 43... Nc5 $17 44. a5 bxa5) 44. Kd3 {[%emt 0:00:00]} Nc5+ {[%emt 0:00:00]} 45. Kc4 {[%emt 0:00:00]} Nxa4 {[%emt 0:00:00]} 46. Bd4 {[%emt 0:00:00]} Nc5 {[%emt 0:00:00]} 47. Kb5 $19 {[%emt 0:00:00]} (47. Bxc5 $11 {and White has nothing to worry.} bxc5 48. Kxc5) 47... Nb3 {[%emt 0:01:00]} 48. Bxb6 {[%emt 0:00:00]} 1/2-1/2

[Event "Czech Youth U16 Girls 2024"]
[Site "Kouty nad Desnou"]
[Date "2024.03.14"]
[Round "7.5"]
[White "Lackova, Ludmila"]
[Black "Dorazilova, Kristyna"]
[Result "1/2-1/2"]
[ECO "E21"]
[WhiteElo "1652"]
[BlackElo "1722"]
[Annotator "NA RC"]
[PlyCount "94"]
[EventDate "2024.03.10"]
[EventType "swiss"]
[EventCountry "CZE"]
[SourceTitle "playchess.com"]
[Source "ChessBase"]
[SourceQuality "1"]
[TimeControl "40/5400+30:1800+30"]

1. d4 {[%emt 0:00:03]} Nf6 {[%emt 0:00:08]} 2. c4 {[%emt 0:00:06]} e6 {[%emt 0:00:04]} 3. Nc3 {[%emt 0:00:05]} b6 {[%emt 0:00:06]} 4. Nf3 {[%emt 0:00:38]} Bb7 {[%emt 0:00:07]} 5. e3 {[%emt 0:07:15]} d5 {[%emt 0:02:01]} 6. a3 {[%emt 0:05:46]} c5 {[%emt 0:02:48]} 7. dxc5 {[%emt 0:02:32]} Bxc5 {[%emt 0:00:13]} 8. cxd5 {[%emt 0:00:23]} Nxd5 {[%emt 0:01:19]} 9. Bb5+ {[%emt 0:00:47]} Bc6 {[%emt 0:06:33]} 10. Bxc6+ {[%emt 0:00:21]} Nxc6 {[%emt 0:00:02]} 11. Nxd5 {[%emt 0:01:14]} exd5 {[%emt 0:00:25]} 12. b4 {[%emt 0:00:24]} Be7 {[%emt 0:00:52]} 13. Bb2 {[%emt 0:00:51]} Bf6 {[%emt 0:04:18]} 14. Bxf6 {[%emt 0:01:24]} Qxf6 {[%emt 0:00:01]} 15. O-O {[%emt 0:00:33]} Rd8 {[%emt 0:01:59]} 16. Rc1 {[%emt 0:03:46]} O-O {[%emt 0:02:12]} 17. Qe2 {[%emt 0:23:29]} Rfe8 {[%emt 0:09:07]} 18. Qb5 {[%emt 0:00:35]} Ne5 {[%emt 0:14:55]} 19. Nxe5 {[%emt 0:03:18]} Rxe5 {[%emt 0:01:38]} 20. Rc6 {[%emt 0:10:07]} Qh4 {[%emt 0:08:35]} 21. Rfc1 {[%emt 0:01:17]} g6 {[%emt 0:05:01]} 22. Qd3 {[%emt 0:10:20]} Rh5 {[%emt 0:05:10]} 23. h3 {[%emt 0:00:37]} Rf5 {[%emt 0:01:41]} 24. Qe2 {[%emt 0:03:16]} Qe7 {[%emt 0:07:50]} 25. Rc7 {[%emt 0:01:35]} Rd7 {[%emt 0:00:32]} 26. Rxd7 {[%emt 0:01:20]} Qxd7 {[%emt 0:00:01]} 27. Qc2 {[%emt 0:00:36]} d4 {[%emt 0:07:53]} 28. Qc8+ {[%emt 0:01:19]} Qxc8 {[%emt 0:00:11]} 29. Rxc8+ {[%emt 0:00:05]} Kg7 {[%emt 0:00:13]} 30. exd4 {[%emt 0:00:09]} Rd5 {[%emt 0:00:15]} 31. Rc4 {[%emt 0:05:26]} Rd7 {[%emt 0:01:54]} 32. f3 {[%emt 0:01:09]} Kf6 {[%emt 0:00:54]} 33. Kf2 {[%emt 0:00:18]} Ke6 {[%emt 0:01:44]} 34. Ke3 {[%emt 0:01:13]} Kd5 {[%emt 0:00:08]} 35. Kd3 {[%emt 0:01:01]} Re7 {[%emt 0:03:24]} 36. Rc8 {[%emt 0:00:16]} Rd7 {[%emt 0:01:16]} 37. Re8 {[%emt 0:01:55]} f6 {[%emt 0:01:37]} 38. g4 {[%emt 0:02:03]} Rc7 {[%emt 0:02:56]} 39. Rd8+ {[%emt 0:00:19]} Ke6 {[%emt 0:00:16]} 40. d5+ {[%emt 0:04:08]} Ke5 {[%emt 0:02:47]} 41. d6 {[%emt 0:31:05]} Rc6 {[%emt 0:32:12]} 42. d7 {[%emt 0:00:48]} Kf4 {[%emt 0:00:00]} 43. Ke2 {[%emt 0:00:00]} Rd6 {[%emt 0:00:00]} 44. h4 {[%emt 0:00:00]} Kg3 {[%emt 0:00:00]} 45. h5 {[%emt 0:00:00]} gxh5 {[%emt 0:00:00]} 46. gxh5 {[%emt 0:00:00]} Kf4 {[%emt 0:00:00]} 47. h6 {[%emt 0:00:00]} f5 {[%emt 0:00:00]} 1/2-1/2

[Event "Czech Youth U16 Girls 2024"]
[Site "Kouty nad Desnou"]
[Date "2024.03.14"]
[Round "7.6"]
[White "Mikesova, Lenka"]
[Black "Vacekova, Anita"]
[Result "0-1"]
[ECO "C50"]
[WhiteElo "1665"]
[BlackElo "1783"]
[Annotator "NA RC"]
[PlyCount "48"]
[EventDate "2024.03.10"]
[EventType "swiss"]
[EventCountry "CZE"]
[SourceTitle "playchess.com"]
[Source "ChessBase"]
[SourceQuality "1"]
[TimeControl "40/5400+30:1800+30"]

1. e4 {[%emt 0:00:02]} e5 {[%emt 0:00:06]} 2. Nf3 {[%emt 0:00:06]} Nc6 {[%emt 0:00:05]} 3. Bc4 {[%emt 0:00:09]} Nf6 {[%emt 0:00:07]} 4. d3 {[%emt 0:00:04]} Bc5 {[%emt 0:00:18]} 5. c3 {[%emt 0:00:18]} d6 {[%emt 0:00:38]} 6. O-O {[%emt 0:00:21]} a6 {[%emt 0:00:11]} 7. Bb3 {[%emt 0:06:17]} O-O {[%emt 0:01:00]} 8. Re1 {[%emt 0:01:13]} Ba7 {[%emt 0:03:47]} 9. Nbd2 {[%emt 0:03:40]} Ng4 {[%emt 0:02:26]} 10. Re2 {[%emt 0:01:52]} Kh8 {[%emt 0:00:31]} 11. h3 {[%emt 0:02:12]} f5 {[%emt 0:00:37]} 12. exf5 {[%emt 0:05:20]} Nxf2 {[%emt 0:04:42]} 13. Rxf2 {[%emt 0:01:02]} Bxf2+ {[%emt 0:01:43]} 14. Kxf2 {[%emt 0:00:16]} Bxf5 {[%emt 0:00:45]} 15. Nf1 {[%emt 0:05:48]} e4 {[%emt 0:04:18]} 16. Bg5 {[%emt 0:08:37]} Qd7 {[%emt 0:06:07]} 17. dxe4 {[%emt 0:01:49]} Bxe4 {[%emt 0:19:36]} 18. Bd5 {[%emt 0:06:13]} Bxf3 {[%emt 0:14:38]} 19. Bxf3 {[%emt 0:00:27]} Ne5 {[%emt 0:01:17]} 20. Nh2 {[%emt 0:02:44]} Qb5 {[%emt 0:04:52]} 21. Bc1 {[%emt 0:15:42]} Nd3+ {[%emt 0:08:54]} 22. Ke3 {[%emt 0:05:17]} Nxc1 {[%emt 0:06:06]} 23. Ng4 {[%emt 0:07:19]} Rae8+ {[%emt 0:01:57]} 24. Kd2 {[%emt 0:01:05]} Qxb2+ {[%emt 0:00:34]} 0-1

[Event "Czech Youth U16 Girls 2024"]
[Site "Kouty nad Desnou"]
[Date "2024.03.14"]
[Round "7.7"]
[White "Dlaskova, Eliska"]
[Black "Stavova, Marketa"]
[Result "1/2-1/2"]
[ECO "C42"]
[WhiteElo "1526"]
[BlackElo "1641"]
[Annotator "NA RC"]
[PlyCount "103"]
[EventDate "2024.03.10"]
[EventType "swiss"]
[EventCountry "CZE"]
[SourceTitle "playchess.com"]
[Source "ChessBase"]
[SourceQuality "1"]
[TimeControl "40/5400+30:1800+30"]

1. e4 {[%emt 0:00:03]} e5 {[%emt 0:00:15]} 2. Nf3 {[%emt 0:00:09]} Nf6 {[%emt 0:00:25]} 3. Nxe5 {[%emt 0:00:31]} d6 {[%emt 0:00:21]} 4. Nf3 {[%emt 0:00:25]} Nxe4 {[%emt 0:00:21]} 5. Qe2 {[%emt 0:01:33]} Qe7 {[%emt 0:00:25]} 6. d3 {[%emt 0:01:21]} Nf6 {[%emt 0:01:14]} 7. Nc3 {[%emt 0:05:30]} Bd7 {[%emt 0:04:58]} 8. Bg5 {[%emt 0:04:39]} Qxe2+ {[%emt 0:01:09]} 9. Bxe2 {[%emt 0:00:51]} Be7 {[%emt 0:00:29]} 10. O-O {[%emt 0:07:35]} O-O {[%emt 0:01:11]} 11. Nd2 {[%emt 0:10:46]} Nc6 {[%emt 0:06:06]} 12. Nb3 {[%emt 0:08:06]} Rfe8 {[%emt 0:06:54]} 13. Bf3 {[%emt 0:02:49]} Rac8 {[%emt 0:04:16]} 14. Rfe1 {[%emt 0:03:04]} b6 {[%emt 0:03:40]} 15. Re2 {[%emt 0:02:53]} Ne5 {[%emt 0:01:50]} 16. Nd2 {[%emt 0:07:48]} c5 {[%emt 0:07:49]} 17. Rae1 {[%emt 0:03:29]} Bd8 {[%emt 0:04:57]} 18. Bb7 {[%emt 0:12:43]} Rb8 {[%emt 0:00:54]} 19. f4 {[%emt 0:02:08]} Rxb7 {[%emt 0:02:41]} 20. fxe5 {[%emt 0:00:42]} dxe5 {[%emt 0:01:06]} 21. Nc4 {[%emt 0:02:08]} Re6 {[%emt 0:10:02]} 22. Nxe5 {[%emt 0:01:55]} h6 {[%emt 0:01:40]} 23. Bxf6 {[%emt 0:03:19]} Rxf6 {[%emt 0:00:59]} 24. Nxd7 {[%emt 0:00:28]} Rxd7 {[%emt 0:00:08]} 25. Ne4 {[%emt 0:05:08]} Re6 {[%emt 0:04:18]} 26. a4 {[%emt 0:01:21]} Rde7 {[%emt 0:00:50]} 27. Nc3 {[%emt 0:02:54]} Rxe2 {[%emt 0:00:34]} 28. Rxe2 {[%emt 0:01:08]} Rxe2 {[%emt 0:00:28]} 29. Nxe2 {[%emt 0:00:04]} Bf6 {[%emt 0:00:33]} 30. Nc3 {[%emt 0:01:25]} Kf8 {[%emt 0:02:23]} 31. Kf2 {[%emt 0:01:30]} g5 {[%emt 0:01:04]} 32. g4 {[%emt 0:01:30]} Be5 {[%emt 0:01:41]} 33. h3 {[%emt 0:01:15]} Ke7 {[%emt 0:01:01]} 34. Nd5+ {[%emt 0:02:38]} Ke6 {[%emt 0:01:26]} 35. Nc3 {[%emt 0:01:19]} Bxc3 {[%emt 0:03:19]} 36. bxc3 {[%emt 0:00:10]} a5 {[%emt 0:01:59]} 37. c4 {[%emt 0:02:01]} f5 {[%emt 0:00:38]} 38. gxf5+ {[%emt 0:00:49]} Kxf5 {[%emt 0:00:08]} 39. Kf3 {[%emt 0:00:18]} h5 {[%emt 0:00:37]} 40. c3 {[%emt 0:00:33]} Ke5 {[%emt 0:03:12]} 41. Ke3 {[%emt 0:31:09]} g4 {[%emt 0:32:03]} 42. d4+ cxd4+ {[%emt 0:00:09]} 43. cxd4+ {[%emt 0:00:25]} Kf5 {[%emt 0:02:27]} 44. hxg4+ {[%emt 0:00:44]} hxg4 {[%emt 0:00:13]} 45. c5 {[%emt 0:00:30]} bxc5 {[%emt 0:00:28]} 46. dxc5 {[%emt 0:00:11]} Ke5 {[%emt 0:00:17]} 47. c6 {[%emt 0:00:32]} Kd6 {[%emt 0:00:05]} 48. Kf4 {[%emt 0:01:16]} Kxc6 {[%emt 0:00:08]} 49. Kxg4 {[%emt 0:00:04]} Kc5 {[%emt 0:00:10]} 50. Kf3 {[%emt 0:00:16]} Kb4 {[%emt 0:00:17]} 51. Ke2 {[%emt 0:00:24]} Kxa4 {[%emt 0:00:32]} 52. Kd1 {[%emt 0:00:18]} 1/2-1/2